bitfinex/quotes_SOLUSD_20260223
["timestamp","ask_amount","ask_price","bid_price","bid_amount"]
[1771837545590,12.66363082,78.967,78.941,0.82754771]
[1771837546482,31.65540376,78.976,78.941,0.82754771]
[1771837546483,12.66271589,78.972,78.941,0.82754771]
[1771837548389,0.83644803,78.972,78.941,0.82754771]
[1771837548689,4.93279746,78.97,78.943,0.87060906]
[1771837548890,0.83644803,78.972,78.943,0.87060906]
[1771837549772,4.93279746,78.97,78.943,0.87060906]
[1771837550582,4.93279746,78.97,78.945,0.87060906]
[1771837551177,5.76924549,78.97,78.945,0.87060906]
[1771837551591,12.66319695,78.969,78.945,0.87060906]
[1771837551790,0.83644803,78.968,78.945,0.87060906]
[1771837553301,0.83644803,78.977,78.947,0.87060906]
[1771837555991,0.83644803,78.99,78.951,0.87060906]
[1771837556183,5.76924549,78.99,78.951,0.87060906]
[1771837556692,0.83644803,78.989,78.951,0.87060906]
[1771837557793,0.83644803,78.989,78.961,0.87060906]
[1771837559697,0.83644803,78.989,78.963,0.87060906]
[1771837560196,0.83644803,78.987,78.963,0.87060906]
[1771837561579,0.83644803,78.985,78.963,0.87060906]
[1771837565497,0.83644803,78.983,78.963,0.87060906]
[1771837567304,0.83644803,78.983,78.964,0.87060906]
[1771837567888,12.66111265,78.982,78.964,0.87060906]
[1771837568192,13.49756068,78.982,78.964,0.87060906]
[1771837569906,0.83644803,78.987,78.964,0.87060906]
[1771837573094,12.66047147,78.986,78.965,0.87060906]
[1771837573603,13.4969195,78.986,78.965,0.87060906]
[1771837573798,0.83644803,78.985,78.965,0.87060906]
[1771837575708,0.83644803,78.983,78.965,0.87060906]
[1771837581492,12.66079205,78.984,78.965,0.87060906]
[1771837583193,0.95185737,78.984,78.965,0.87060906]
[1771837586809,0.95185737,78.982,78.965,0.87060906]
[1771837588297,0.95185737,79.005,78.971,0.87579755]
[1771837588498,0.95185737,79.005,78.965,12.66383416]
[1771837588499,6.61925944,79.014,78.991,0.87579755]
[1771837588813,0.95185737,79.021,79.001,0.87579755]
[1771837590206,0.95185737,79.02,79.001,0.87579755]
[1771837591313,0.95185737,79.02,79.002,12.65790739]
[1771837591517,0.95185737,79.02,79.003,0.87579755]
[1771837595211,0.95185737,79.024,79.003,0.87579755]
[1771837596926,0.95185737,79.038,79.011,0.87579755]
[1771837597449,0.1,79.05,79.021,0.87579755]
[1771837597632,0.1,79.05,79.031,0.87579755]
[1771837598811,0.95185737,79.049,79.024,0.87579755]
[1771837599012,0.95185737,79.049,79.012,0.87579755]
[1771837600030,0.95185737,79.049,79.02,4.93304888]
[1771837600230,0.95185737,79.049,79.021,0.87579755]
[1771837601709,0.1,79.05,79.023,0.87579755]
[1771837601914,0.1,79.05,79.031,0.87579755]
[1771837602231,0.95185737,79.061,79.032,0.87579755]
[1771837603032,12.64733738,79.069,79.041,0.87579755]
[1771837603531,0.1,79.07,79.051,0.87579755]
[1771837603907,0.1,79.07,79.052,12.64990133]
[1771837604105,0.1,79.08,79.053,0.87579755]
[1771837604310,0.1,79.08,79.061,0.87579755]
[1771837604728,0.95185737,79.069,79.042,0.87579755]
[1771837604911,4.93304888,79.07,79.04,4.93304888]
[1771837605114,0.95185737,79.072,79.041,0.87579755]
[1771837606430,0.95185737,79.078,79.051,0.87579755]
[1771837606630,0.1,79.08,79.051,0.87579755]
[1771837607024,12.64558226,79.079,79.051,0.87579755]
[1771837607432,0.95185737,79.078,79.051,0.87579755]
[1771837608533,0.1,79.08,79.053,0.88226172]
[1771837609522,0.1,79.08,79.054,12.64958129]
[1771837609728,0.1,79.08,79.055,0.88226172]
[1771837610236,1.07519962,79.08,79.055,0.88226172]
[1771837610818,0.97519962,79.079,79.04,4.93304888]
[1771837611636,12.64574217,79.078,79.041,12.65166179]
[1771837611835,0.97519962,79.077,79.05,4.93304888]
[1771837612220,0.97519962,79.077,79.051,4.7]
[1771837612729,0.97519962,79.077,79.052,0.88226172]
[1771837613134,0.1,79.08,79.052,0.88226172]
[1771837613344,0.1,79.08,79.061,0.88226172]
[1771837613638,0.1,79.1,79.072,0.88226172]
[1771837613838,0.1,79.1,79.081,0.88226172]
[1771837615724,0.97519962,79.099,79.073,4.7]
[1771837616037,5.03304888,79.1,79.073,4.7]
[1771837616038,0.97519962,79.097,79.073,4.7]
[1771837616216,0.97519962,79.089,79.073,2.82960704]
[1771837616838,12.64254469,79.098,79.074,0.98112263]
[1771837617417,0.1,79.1,79.081,0.98112263]
[1771837617940,12.64238485,79.099,79.081,0.98112263]
[1771837618238,0.1,79.1,79.075,0.98112263]
[1771837618836,0.1,79.1,79.068,0.98112263]
[1771837618837,5.03304888,79.1,79.068,0.98112263]
[1771837619137,4.93304888,79.09,79.06,0.98112263]
[1771837619441,5.03304888,79.1,79.061,0.98112263]
[1771837621431,12.74228388,79.1,79.071,0.98112263]
[1771837621835,17.67533276,79.1,79.071,0.98112263]
[1771837625038,17.67533276,79.1,79.049,1.32960704]
[1771837625039,4.93304888,79.09,79.059,13.62975244]
[1771837625538,4.93304888,79.09,79.06,0.98112263]
[1771837625739,12.64398336,79.089,79.06,0.98112263]
[1771837626446,4.93304888,79.07,79.03,0.98112263]
[1771837626631,4.93304888,79.05,79.03,0.98112263]
[1771837626949,4.93304888,79.04,79.014,0.98112263]
[1771837627848,4.93304888,79.04,79.016,0.98112263]
[1771837629752,12.65198193,79.039,79.018,0.98112263]
[1771837631835,4.93304888,79.03,79.012,0.98112263]
[1771837633854,4.93304888,79.02,79.005,0.98112263]
[1771837634851,3.69383402,79.071,79.01,4.93304888]
[1771837635036,4.93304888,79.05,79.011,0.98112263]
[1771837636653,12.6503814,79.049,79.013,0.98112263]
[1771837638659,12.6503814,79.049,79.014,12.65598501]
[1771837638845,12.6503814,79.049,79.015,0.98112263]
[1771837639258,4.93304888,79.04,79.015,0.98112263]
[1771837641258,4.92655772,79.04,79.016,12.65566467]
[1771837641447,4.92655772,79.04,79.017,0.98112263]
[1771837642744,4.92655772,79.05,79.019,0.98112263]
[1771837643461,44.26345609,79.072,79.021,0.98112263]
[1771837643666,4.92655772,79.06,79.023,0.98112263]
[1771837647469,4.92655772,79.05,79.025,0.98112263]
[1771837647672,4.92655772,79.05,79.027,0.98112263]
[1771837653274,4.92655772,79.05,79.029,0.98112263]
[1771837659368,4.92655772,79.05,79.031,0.98112263]
[1771837664757,4.92655772,79.05,79.032,12.65310254]
[1771837664960,4.92655772,79.05,79.032,13.63422517]
[1771837665368,4.92655772,79.05,79.033,0.98112263]
[1771837665958,4.92655772,79.05,79.035,0.98112263]
[1771837667776,12.6503814,79.049,79.03,0.98112263]
[1771837679174,4.92655772,79.05,79.03,0.98112263]
[1771837679175,63.23203026,79.074,79.03,0.98112263]
[1771837679375,4.92655772,79.05,79.03,0.98112263]
[1771837682599,12.6503814,79.049,79.03,0.98112263]
[1771837683399,4.92655772,79.06,79.031,0.98112263]
[1771837683602,4.92655772,79.07,79.041,0.98112263]
[1771837683899,4.92655772,79.09,79.061,0.98112263]
[1771837684579,12.64398336,79.089,79.063,0.98112263]
[1771837686998,44.25394176,79.089,79.05,4.92655772]
[1771837687188,4.92655772,79.06,79.043,0.98112263]
[1771837688491,12.64878128,79.059,79.043,0.98112263]
[1771837693803,4.92655772,79.05,79.033,0.98112263]
[1771837693987,4.92655772,79.05,79.022,0.98112263]
[1771837698209,12.6503814,79.049,79.024,0.98112263]
[1771837699312,4.92655772,79.05,79.024,0.98112263]
[1771837699610,17.5768574,79.05,79.024,0.98112263]
[1771837703195,4.92655772,79.05,79.024,0.98112263]
[1771837703394,4.92655772,79.05,79.02,4.92655772]
[1771837703395,12.6503814,79.049,79.026,0.98112263]
[1771837705816,4.92540991,79.04,79.026,0.98112263]
[1771837706110,4.92540991,79.04,79.021,13.63588856]
[1771837706289,4.92540991,79.04,79.022,0.98112263]
[1771837706491,4.92540991,79.03,79.017,0.98112263]
[1771837706817,4.92540991,79.04,79.018,0.98112263]
[1771837707889,12.64987213,79.053,79.021,0.98112263]
[1771837708095,4.92540991,79.06,79.021,0.98112263]
[1771837708817,17.57418081,79.06,79.021,0.98112263]
[1771837709199,12.6487709,79.06,79.031,0.98112263]
[1771837709514,17.57418081,79.06,79.031,0.98112263]
[1771837709722,4.92540991,79.05,79.033,0.98112263]
[1771837711024,17.57418081,79.06,79.033,0.98112263]
[1771837711919,17.57418081,79.06,79.034,12.65278234]
[1771837712317,17.57418081,79.06,79.035,0.98112263]
[1771837716422,4.92540991,79.05,79.025,0.98112263]
[1771837716725,12.64878128,79.059,79.027,0.98112263]
[1771837717826,12.64878128,79.059,79.031,0.98112263]
[1771837719227,12.64718157,79.069,79.033,0.98112263]
[1771837721226,12.64494265,79.083,79.051,0.98112263]
[1771837722318,12.64398336,79.089,79.052,12.64990133]
[1771837722613,12.64398336,79.089,79.053,0.98112263]
[1771837726634,12.64398336,79.089,79.055,0.98112263]
[1771837728721,12.64398336,79.089,79.057,0.98112263]
[1771837729834,4.92540991,79.08,79.057,0.98112263]
[1771837732330,17.57086293,79.08,79.057,0.98112263]
[1771837734119,49.18441882,79.08,79.057,0.98112263]
[1771837734317,4.92540991,79.07,79.046,0.98112263]
[1771837734620,4.92540991,79.06,79.044,1.32960704]
[1771837734820,4.92540991,79.06,79.042,0.98112263]
[1771837735021,4.92540991,79.07,79.042,0.98112263]
[1771837735233,4.92540991,79.09,79.051,0.98112263]
[1771837735731,4.92540991,79.08,79.051,0.98112263]
[1771837736041,4.92540991,79.07,79.051,0.98112263]
[1771837736537,4.92540991,79.07,79.041,44.28074989]
[1771837736538,4.92540991,79.07,79.053,0.98112263]
[1771837738938,4.92540991,79.07,79.054,12.64958129]
[1771837739432,4.92540991,79.07,79.053,13.63085904]
[1771837739921,4.92540991,79.07,79.054,0.98112263]
[1771837741040,4.92540991,79.07,79.056,0.98112263]
[1771837741250,12.64558484,79.079,79.056,0.98112263]
[1771837742323,44.24834699,79.099,79.056,0.98112263]
[1771837742525,4.92540991,79.08,79.056,0.98112263]
[1771837745552,4.92540991,79.07,79.056,0.98112263]
[1771837746541,4.92540991,79.07,79.053,12.64962382]
[1771837746745,4.92540991,79.07,79.053,13.63074645]
[1771837747331,4.92540991,79.07,79.054,0.98112263]
[1771837747528,4.92540991,79.07,79.049,0.98112263]
[1771837747732,44.25953792,79.079,79.045,1.32960704]
[1771837747733,4.92540991,79.06,79.045,1.32960704]
[1771837747925,4.92540991,79.06,79.043,0.98112263]
[1771837748127,4.92540991,79.06,79.045,0.98112263]
[1771837748333,12.64718157,79.069,79.045,0.98112263]
[1771837750442,12.64718157,79.069,79.046,12.65086152]
[1771837750643,12.64718157,79.069,79.047,0.98112263]
[1771837752547,4.92540991,79.07,79.047,0.98112263]
[1771837752845,4.92540991,79.07,79.048,12.65054144]
[1771837753048,4.92540991,79.08,79.049,0.98112263]
[1771837754851,63.21711243,79.093,79.049,0.98112263]
[1771837755073,12.64558226,79.079,79.049,0.98112263]
[1771837755648,4.92540991,79.07,79.049,0.98112263]
[1771837757352,12.64718157,79.069,79.049,0.98112263]
[1771837762838,4.92540991,79.07,79.049,13.63134682]
[1771837763037,12.64667116,79.073,79.05,0.98112263]
[1771837764455,4.92279649,79.07,79.05,0.98112263]
[1771837765157,0.75644809,79.069,79.031,12.65326264]
[1771837765464,0.75644809,79.059,79.031,12.65326264]
[1771837765940,4.92279649,79.06,79.031,12.65326264]
[1771837766141,4.92279649,79.06,79.031,44.28641924]
[1771837766551,13.40417152,79.062,79.031,44.28641924]
[1771837767258,13.40417152,79.062,79.032,0.84721217]
[1771837768063,0.75473424,79.061,79.034,0.84721217]
[1771837768264,0.75473424,79.059,79.034,0.84721217]
[1771837769666,0.75417603,79.068,79.034,0.84721217]
[1771837770643,0.75362423,79.066,79.036,0.84721217]
[1771837771372,12.64750148,79.067,79.036,0.84721217]
[1771837771550,12.64750148,79.067,79.041,0.84721217]
[1771837773266,12.64702162,79.07,79.043,0.84721217]
[1771837773661,13.39846964,79.07,79.043,0.84721217]
[1771837773863,0.75144802,79.069,79.043,0.84721217]
[1771837776271,0.75144802,79.069,79.044,12.65118162]
[1771837776471,0.75144802,79.069,79.045,0.84721217]
[1771837778169,12.64333441,79.094,79.061,0.84721217]
[1771837778355,0.74937008,79.097,79.063,0.84721217]
[1771837780753,0.74787344,79.079,79.048,0.84721217]
[1771837780953,4.92279649,79.06,79.026,0.84721217]
[1771837781169,4.92279649,79.05,79.026,0.84721217]
[1771837781374,0.74787344,79.049,79.026,0.84721217]
[1771837782468,0.74738598,79.039,79.001,0.84721217]
[1771837782852,0.74738598,79.039,79.003,0.84721217]
[1771837783051,4.92279649,79.04,78.992,0.84721217]
[1771837783052,0.74690412,79.019,78.992,0.84721217]
[1771837783270,4.92279649,79.01,78.992,0.84721217]
[1771837783578,5.66970061,79.0,78.978,0.84721217]
[1771837784173,4.92279649,78.99,78.97,13.71016148]
[1771837784473,4.92279649,78.99,78.971,0.84721217]
[1771837785113,4.92279649,78.99,78.972,12.66271589]
[1771837785271,4.92279649,78.99,78.971,0.84721217]
[1771837786959,4.92279649,78.99,78.972,12.66271589]
[1771837787460,4.92279649,79.0,78.973,0.84721217]
[1771837787679,0.74457655,78.999,78.973,0.84721217]
[1771837788061,4.92279649,78.99,78.973,0.84721217]
[1771837788963,0.74368253,78.989,78.97,0.2]
[1771837789163,4.92279649,78.98,78.97,0.2]
[1771837791180,13.40368002,78.989,78.97,0.2]
[1771837791563,4.92279649,78.98,78.97,0.2]
[1771837791971,12.65999749,78.989,78.971,0.78484047]
[1771837792182,4.92279649,79.0,78.971,0.78484047]
[1771837792674,0.74237963,78.999,78.971,0.78484047]
[1771837793574,3.69383402,79.027,78.961,0.78484047]
[1771837793575,4.92279649,78.98,78.961,0.78484047]
[1771837793774,4.92279649,78.97,78.955,0.78484047]
[1771837794079,0.74195527,78.979,78.955,0.78484047]
[1771837794576,4.92279649,78.98,78.955,0.78484047]
[1771837797183,4.92279649,78.98,78.957,0.78484047]
[1771837797367,12.66012311,78.989,78.958,0.78484047]
[1771837798686,0.73950952,78.988,78.96,0.78484047]
[1771837799883,4.92279649,79.0,78.96,4.92279649]
[1771837800111,17.58102433,79.0,78.971,0.78484047]
[1771837800478,0.73911812,78.989,78.961,2.11444751]
[1771837800670,0.73911812,78.989,78.963,0.78484047]
[1771837800990,4.92279649,78.99,78.963,0.78484047]
[1771837804088,0.73873122,78.995,78.965,0.78484047]
[1771837804691,4.92279649,79.0,78.965,0.78484047]
[1771837804888,0.73722755,78.998,78.965,0.78484047]
[1771837805589,0.73722755,78.998,78.965,2.11444751]
[1771837805791,0.73722755,78.998,78.966,0.78484047]
[1771837805988,0.73686237,78.988,78.966,0.78484047]
[1771837806180,0.73686237,78.988,78.967,12.66351767]
[1771837807567,0.73686237,78.988,78.966,0.78484047]
[1771837807772,0.73686237,78.988,78.965,1.32960704]
[1771837808986,0.73686237,78.988,78.967,0.78484047]
[1771837812192,13.39701949,78.988,78.967,0.78484047]
[1771837812600,12.65854831,78.998,78.969,0.78484047]
[1771837813283,0.73442086,78.997,78.969,0.78484047]
[1771837813802,4.92279649,78.99,78.969,0.78484047]
[1771837813978,13.39295671,78.996,78.969,0.78484047]
[1771837814174,0.73408791,78.995,78.969,0.78484047]
[1771837815983,44.30435828,78.999,78.969,0.78484047]
[1771837816199,0.73343345,79.008,78.971,0.78484047]
[1771837816496,4.92279649,79.0,78.971,0.78484047]
[1771837817190,4.92279649,79.0,78.973,0.78484047]
[1771837817385,4.92279649,79.0,78.976,0.78484047]
[1771837818185,0.73343345,79.004,78.976,0.78484047]
[1771837818496,0.73216902,79.009,78.981,0.81987231]
[1771837819611,0.73186194,79.007,78.983,0.81987231]
[1771837819787,0.73155838,78.989,78.963,0.81987231]
[1771837820093,4.92279649,78.98,78.963,0.81987231]
[1771837820489,44.29931146,79.008,78.963,0.81987231]
[1771837820490,12.65694613,79.008,78.963,0.81987231]
[1771837820695,5.6540548,79.0,78.963,0.81987231]
[1771837820889,0.73125831,78.999,78.963,0.81987231]
[1771837821494,0.73125831,78.997,78.965,0.81987231]
[1771837822714,4.92279649,79.0,78.971,0.81987231]
[1771837822893,4.92279649,79.01,78.971,0.81987231]
[1771837823209,17.57948273,79.01,78.971,0.81987231]
[1771837823416,18.31809856,79.01,78.971,0.81987231]
[1771837823597,17.58743009,79.01,78.971,0.81987231]
[1771837823913,4.93074385,78.99,78.969,0.81987231]
[1771837824210,5.66112248,79.0,78.969,0.81987231]
[1771837824790,0.73009211,78.999,78.969,0.81987231]
[1771837825608,0.73009211,78.997,78.971,0.81987231]
[1771837826717,4.93074385,78.99,78.971,0.81987231]
[1771837828705,0.72952891,78.992,78.973,0.81987231]
[1771837828903,0.72897857,78.997,78.973,0.81987231]
[1771837829106,4.93074385,78.99,78.973,0.81987231]
[1771837829307,5.65972242,78.99,78.973,0.81987231]
[1771837830204,101.18965949,79.06,78.973,0.81987231]
[1771837830205,0.72870813,79.023,78.973,0.81987231]
[1771837830405,4.93074385,79.02,78.981,0.81987231]
[1771837830810,0.7284408,79.018,78.983,0.81987231]
[1771837831017,5.65918465,79.0,78.982,12.66111265]
[1771837831209,0.7284408,78.999,78.982,12.66111265]
[1771837831611,4.93074385,79.0,78.983,0.81987231]
[1771837832307,4.93074385,79.01,78.983,0.81987231]
[1771837833226,13.38470124,79.009,78.983,0.81987231]
[1771837833415,0.72791531,79.008,78.983,0.81987231]
[1771837833921,4.93074385,79.0,78.983,0.81987231]
[1771837834629,4.93074385,79.0,78.984,13.48066436]
[1771837835029,4.93074385,79.0,78.985,0.81987231]
[1771837838120,0.72791531,79.008,78.985,0.81987231]
[1771837838330,0.72791531,79.008,78.987,0.81987231]
[1771837838513,0.72665351,79.017,78.987,0.81987231]
[1771837841129,4.93074385,79.01,78.989,0.81987231]
[1771837841529,5.65667453,79.0,78.984,12.66074926]
[1771837844128,0.72523248,79.006,78.985,0.81987231]
[1771837844934,0.72500507,78.999,78.982,12.66110562]
[1771837846325,0.72500507,78.999,78.982,0.81987231]
[1771837846829,4.93074385,79.0,78.982,0.81987231]
[1771837847318,5.6553019,79.0,78.983,12.66095235]
[1771837848233,5.6553019,79.0,78.982,0.81987231]
[1771837848434,5.6553019,79.0,78.983,12.66095235]
[1771837850942,5.6553019,79.0,78.983,0.85209967]
[1771837852443,5.6553019,79.0,78.984,12.66079205]
[1771837852842,5.6553019,79.0,78.984,13.51289172]
[1771837853046,0.72307239,79.005,78.985,0.85209967]
[1771837853830,1.5,79.0,78.985,0.85209967]
[1771837859554,0.83510556,79.023,78.991,0.85209967]
[1771837860653,14.44096778,79.071,79.001,0.85209967]
[1771837860953,0.1,79.08,79.021,0.85209967]
[1771837860954,0.83510556,79.051,79.021,0.85209967]
[1771837861251,0.83510556,79.059,79.031,0.85209967]
[1771837861559,0.83510556,79.073,79.041,0.85209967]
[1771837861738,0.83510556,79.049,79.01,4.93074385]
[1771837861937,0.83510556,79.049,79.003,3.69383402]
[1771837861938,0.83510556,79.039,79.0,4.93074385]
[1771837862253,0.83510556,79.039,79.01,4.93074385]
[1771837862435,5.76584941,79.05,79.01,4.93074385]
[1771837862748,0.83510556,79.049,79.02,4.93074385]
[1771837863638,0.83510556,79.049,79.021,0.85209967]
[1771837866656,0.83510556,79.055,79.023,0.85209967]
[1771837866842,0.83510556,79.055,79.031,0.85209967]
[1771837867768,0.83510556,79.055,79.033,0.85209967]
[1771837870860,0.83510556,79.061,79.034,44.2847382]
[1771837871058,0.83510556,79.061,79.035,0.85209967]
[1771837873853,0.83510556,79.061,79.036,12.65246216]
[1771837874162,0.83510556,79.061,79.037,0.85209967]
[1771837878756,0.83510556,79.061,79.039,0.91312068]
[1771837879961,0.83510556,79.061,79.04,4.93074385]
[1771837880162,0.83510556,79.061,79.041,0.91312068]
[1771837882644,0.91747234,79.059,79.038,12.652142]
[1771837882950,0.91747234,79.059,79.039,0.91312068]
[1771837884761,0.91747234,79.064,79.041,0.91312068]
[1771837887165,0.1,79.08,79.043,0.91312068]
[1771837887355,0.1,79.08,79.042,12.65150173]
[1771837887356,0.91747234,79.106,79.071,0.91312068]
[1771837887564,0.91747234,79.113,79.091,0.91312068]
[1771837888064,5.02308054,79.13,79.1,4.92308054]
[1771837888065,0.91747234,79.12,79.1,4.92308054]
[1771837888258,0.91747234,79.12,79.099,0.91312068]
[1771837888768,0.91747234,79.109,79.081,0.91312068]
[1771837889255,0.91747234,79.109,79.083,0.91312068]
[1771837889662,0.91747234,79.116,79.091,0.91312068]
[1771837893050,0.91747234,79.116,79.093,0.91312068]
[1771837894571,0.91747234,79.115,79.088,12.64414323]
[1771837895171,0.91747234,79.109,79.088,12.64414323]
[1771837898689,0.91747234,79.099,79.065,12.64782141]
[1771837898861,0.91747234,79.089,79.065,12.64782141]
[1771837900078,0.91747234,79.089,79.065,0.91312068]
[1771837902183,0.91747234,79.089,79.066,12.64766144]
[1771837902487,0.91747234,79.089,79.066,13.56078212]
[1771837902859,0.91747234,79.089,79.067,0.91312068]
[1771837903768,13.55985719,79.099,79.067,0.91312068]
[1771837903968,0.91747234,79.098,79.067,0.91312068]
[1771837904169,4.92308054,79.09,79.067,0.91312068]
[1771837904992,0.91747234,79.089,79.069,0.91312068]
[1771837905483,0.91747234,79.089,79.068,12.64734152]
[1771837906682,0.91747234,79.089,79.065,0.91312068]
[1771837907882,0.96574664,79.099,79.065,0.91312068]
[1771837908060,0.96574664,79.099,79.066,1.00139309]
[1771837909087,0.96574664,79.097,79.068,1.00139309]
[1771837911971,0.96574664,79.089,79.069,12.64718157]
[1771837912765,0.96574664,79.089,79.07,1.00139309]
[1771837913872,0.96574664,79.089,79.071,12.64686168]
[1771837914073,0.96574664,79.089,79.072,1.00139309]
[1771837914681,0.96574664,79.089,79.071,12.64686168]
[1771837915497,0.96574664,79.089,79.066,1.00139309]
[1771837915498,0.96574664,79.089,79.068,1.00139309]
[1771837916787,0.96574664,79.089,79.056,1.00139309]
[1771837916990,4.92308054,79.08,79.056,1.00139309]
[1771837917373,0.96574664,79.079,79.056,1.00139309]
[1771837918487,0.96574664,79.079,79.051,2.1]
[1771837918488,0.96574664,79.079,79.058,1.00139309]
[1771837920393,0.96574664,79.088,79.058,1.00139309]
[1771837921491,0.96574664,79.079,79.059,12.64878128]
[1771837922293,31.60711748,79.097,79.06,1.00139309]
[1771837922492,0.96574664,79.079,79.06,1.00139309]
[1771837923799,0.96574664,79.079,79.061,12.64846131]
[1771837925597,0.96574664,79.079,79.055,14.74942128]
[1771837925789,0.96574664,79.069,79.055,1.02051822]
[1771837926097,0.96574664,79.069,79.048,12.65050956]
[1771837926299,4.92308054,79.06,79.048,12.65050956]
[1771837926614,0.79639664,79.059,79.037,1.00139309]
[1771837927712,0.79639664,79.059,79.039,1.00139309]
[1771837929103,0.81065078,79.049,79.031,12.65321015]
[1771837929316,4.92308054,79.04,79.031,12.65321015]
[1771837929485,4.92308054,79.04,79.027,13.65526785]
[1771837930384,4.92308054,79.04,79.027,12.65387476]
[1771837930585,0.81529343,79.039,79.001,44.30323665]
[1771837930785,4.92308054,79.03,79.001,44.30323665]
[1771837932706,4.92308054,79.03,79.002,1.00139309]
[1771837933305,4.92308054,79.04,79.011,1.00139309]
[1771837933991,4.92308054,79.03,79.006,1.00139309]
[1771837935406,4.92308054,79.03,79.008,1.00139309]
[1771837936787,4.92308054,79.04,79.008,1.00139309]
[1771837937994,4.92308054,79.04,79.011,1.0921621]
[1771837938487,0.93768483,79.039,79.011,1.0921621]
[1771837940301,0.93768483,79.039,79.013,1.07631685]
[1771837946222,0.93768483,79.039,79.015,1.07631685]
[1771837947113,4.92308054,79.03,79.015,1.07631685]
[1771837947318,1.01311186,79.029,79.005,1.07631685]
[1771837947525,4.92858047,79.02,79.005,1.07631685]
[1771837948213,1.01311186,79.023,79.007,1.07631685]
[1771837948713,1.02102943,79.029,79.007,1.07631685]
[1771837949530,1.02102943,79.029,79.009,1.07631685]
[1771837952030,1.02102943,79.029,79.011,1.07631685]
[1771837954124,4.92858047,79.03,79.013,1.07631685]
[1771837956434,6.00965829,79.03,79.013,1.07631685]
[1771837961330,6.00965829,79.03,79.015,1.07631685]
[1771837961630,4.92858047,79.03,79.015,1.07631685]
[1771837962513,1.11592142,79.035,79.015,1.07631685]
[1771837962935,12.65230231,79.037,79.015,1.07631685]
[1771837963122,63.2443199,79.059,79.014,12.65598501]
[1771837963123,4.92858047,79.05,79.016,1.2354884]
[1771837963323,12.64878128,79.059,79.022,12.65470375]
[1771837963631,4.92858047,79.05,79.023,1.2354884]
[1771837964536,4.92858047,79.05,79.024,12.65438347]
[1771837965036,4.92858047,79.05,79.025,1.2354884]
[1771837966633,4.92858047,79.05,79.027,1.2354884]
[1771837968835,4.97886642,79.05,79.028,12.65374297]
[1771837969020,4.97886642,79.05,79.029,1.2354884]
[1771837970736,0.06391737,79.049,79.029,1.2354884]
[1771837972131,0.06391737,79.049,79.031,1.2354884]
[1771837976136,0.06391737,79.049,79.032,12.65310254]
[1771837976339,4.92858047,79.06,79.033,1.2354884]
[1771837976727,5.03156328,79.06,79.033,1.2354884]
[1771837977425,4.92858047,79.05,79.033,1.2354884]
[1771837978036,5.03781313,79.05,79.033,1.2354884]
[1771837978858,0.11541023,79.049,79.033,1.2354884]
[1771837980454,4.92858047,79.05,79.035,1.2354884]
[1771837980630,0.12151666,79.054,79.035,1.2354884]
[1771837981737,4.92858047,79.05,79.035,1.2354884]
[1771837982549,0.12151666,79.054,79.035,1.2354884]
[1771837984354,0.14525588,79.058,79.035,1.2354884]
[1771837986555,4.92858047,79.05,79.035,1.2354884]
[1771837988255,5.09647267,79.06,79.037,1.2354884]
[1771837988467,12.81507377,79.069,79.039,1.2354884]
[1771837990362,4.92858047,79.06,79.039,1.2354884]
[1771837990542,4.92858047,79.06,79.041,1.2354884]
[1771837993166,4.92858047,79.06,79.042,13.88699013]
[1771837993344,4.92858047,79.06,79.043,1.2354884]
[1771837998867,4.92858047,79.06,79.045,1.31461764]
[1771837999357,5.16083821,79.07,79.045,1.31461764]
[1771837999558,0.23225774,79.068,79.045,1.31461764]
[1771838000056,4.92858047,79.06,79.045,1.31461764]
[1771838000460,0.23684406,79.069,79.045,1.31461764]
[1771838000759,4.92858047,79.06,79.045,1.31461764]
[1771838003461,17.57568992,79.07,79.047,1.31461764]
[1771838003774,4.92858047,79.12,79.047,1.31461764]
[1771838003775,17.57415958,79.08,79.047,1.31461764]
[1771838003975,17.57415958,79.08,79.051,1.31461764]
[1771838004453,0.25460935,79.079,79.051,1.31461764]
[1771838004771,0.25460935,79.069,79.051,1.31461764]
[1771838005853,0.25460935,79.069,79.046,1.31461764]
[1771838008677,4.92858047,79.07,79.048,1.31461764]
[1771838009169,0.27565437,79.069,79.048,1.31461764]
[1771838010575,0.27565437,79.069,79.049,12.6503814]
[1771838010775,0.27565437,79.069,79.05,1.31461764]
[1771838012170,4.92311077,79.07,79.052,1.31461764]
[1771838013758,4.92311077,79.07,79.053,12.64974131]
[1771838013963,4.92311077,79.07,79.054,1.31461764]
[1771838015579,0.29934939,79.069,79.054,1.31461764]
[1771838017496,0.30684294,79.076,79.056,1.31461764]
[1771838017662,4.92311077,79.07,79.056,1.31461764]
[1771838018878,5.23733441,79.07,79.056,1.31461764]
[1771838021585,0.32143683,79.069,79.056,1.31461764]
[1771838022560,0.32143683,79.069,79.052,1.31461764]
[1771838024284,0.32143683,79.069,79.053,12.64974131]
[1771838024484,0.32143683,79.069,79.054,1.31461764]
[1771838027689,4.92311077,79.07,79.054,1.31461764]
[1771838028486,5.27174342,79.07,79.054,1.31461764]
[1771838033091,5.27174342,79.07,79.055,13.95318465]
[1771838033688,0.36442169,79.069,79.055,13.95318465]